[Event "95th Caplin Hastings Congress"]
[Site "Hastings"]
[Date "2019.12.28"]
[Round "1.41"]
[White "Shivika Rohilla"]
[Black "Varney, Zoe"]
[Result "1-0"]
[ECO "C65"]
[WhiteElo "1744"]
[BlackElo "2004"]
[Annotator "NA"]
[PlyCount "69"]
[EventDate "2019.12.28"]
[EventType "swiss"]
[EventCountry "ENG"]
[SourceTitle "playchess.com"]
[Source "ChessBase"]
[SourceQuality "1"]
[TimeControl "40/6600+30:3000+30"]

1. e4 {[%emt 0:09:32]} e5 {[%emt 0:09:35]} 2. Nf3 {[%emt 0:00:05]} Nc6 {[%emt 0:00:04]} 3. Bb5 {[%emt 0:00:04]} Nf6 {[%emt 0:00:05]} 4. d3 {[%emt 0:00:06]} d6 {[%emt 0:00:04]} 5. c3 {[%emt 0:00:05]} g6 {[%emt 0:00:03]} 6. Nbd2 {[%emt 0:00:12]} Bg7 {[%emt 0:00:14]} 7. Nf1 {[%emt 0:00:07]} O-O {[%emt 0:00:38]} 8. Ng3 {[%emt 0:00:12]} Ne8 {[%emt 0:06:55]} 9. O-O {[%emt 0:25:17]} Ne7 {[%emt 0:06:00]} 10. Bc4 {[%emt 0:07:36]} c6 {[%emt 0:02:48]} 11. Bb3 {[%emt 0:03:51]} d5 {[%emt 0:07:21]} 12. d4 {[%emt 0:02:47]} exd4 {[%emt 0:04:07]} 13. Nxd4 {[%emt 0:00:20]} dxe4 {[%emt 0:30:47]} 14. Nxe4 {[%emt 0:00:44]} Qc7 {[%emt 0:02:13]} 15. Be3 {[%emt 0:07:11]} Nd5 {[%emt 0:21:14]} 16. Bxd5 {[%emt 0:04:15]} cxd5 {[%emt 0:00:07]} 17. Ng5 {[%emt 0:00:33]} Nf6 {[%emt 0:11:04]} 18. Nb5 {[%emt 0:03:31]} Qa5 {[%emt 0:02:07]} 19. Nd6 {[%emt 0:05:29]} Qc7 {[%emt 0:04:52]} 20. Nxc8 {[%emt 0:00:11]} Raxc8 {[%emt 0:01:14]} 21. Qb3 {[%emt 0:01:48]} Ng4 {[%emt 0:01:51]} 22. Nf3 {[%emt 0:01:15]} Nxe3 {[%emt 0:00:18]} 23. fxe3 {[%emt 0:00:08]} Rfd8 {[%emt 0:01:36]} 24. Nd4 {[%emt 0:02:17]} Rd7 {[%emt 0:02:26]} 25. Rf3 {[%emt 0:03:47]} Re8 {[%emt 0:00:34]} 26. Rd1 {[%emt 0:01:42]} Bh6 {[%emt 0:01:33]} 27. Nc2 {[%emt 0:01:36]} Qe5 {[%emt 0:00:33]} 28. Qa4 {[%emt 0:02:41]} Rde7 {[%emt 0:01:24]} 29. Qxa7 {[%emt 0:04:05]} Qe4 {[%emt 0:00:04]} 30. Rd2 {[%emt 0:00:55]} Qh4 {[%emt 0:01:18]} 31. Qd4 {[%emt 0:03:22]} Re4 {[%emt 0:01:03]} 32. Qxd5 {[%emt 0:01:16]} Bxe3+ {[%emt 0:00:30]} 33. Nxe3 {[%emt 0:00:14]} Rxe3 {[%emt 0:00:13]} 34. Qxf7+ {[%emt 0:00:12]} Kh8 {[%emt 0:00:03]} 35. Rxe3 {[%emt 0:00:11]} 1-0

[Event "95th Caplin Hastings Congress"]
[Site "Hastings"]
[Date "2019.12.28"]
[Round "1.42"]
[White "De Coverly, Roger D"]
[Black "Thatte, Nishchal"]
[Result "1-0"]
[ECO "A30"]
[WhiteElo "1986"]
[BlackElo "1723"]
[Annotator "NA"]
[PlyCount "65"]
[EventDate "2019.12.28"]
[EventType "swiss"]
[EventCountry "ENG"]
[SourceTitle "playchess.com"]
[Source "ChessBase"]
[SourceQuality "1"]
[TimeControl "40/6600+30:3000+30"]

1. Nf3 {[%emt 0:09:45]} Nf6 {[%emt 0:09:41]} 2. g3 {[%emt 0:00:06]} b6 {[%emt 0:00:06]} 3. Bg2 {[%emt 0:00:14]} Bb7 {[%emt 0:00:16]} 4. O-O {[%emt 0:00:56]} e6 {[%emt 0:00:26]} 5. c4 {[%emt 0:01:07]} Be7 {[%emt 0:02:08]} 6. Nc3 {[%emt 0:04:44]} c5 {[%emt 0:07:30]} 7. Re1 {[%emt 0:00:56]} O-O {[%emt 0:02:08]} 8. e4 {[%emt 0:00:19]} d6 {[%emt 0:06:51]} 9. d4 {[%emt 0:02:50]} Nc6 {[%emt 0:13:35]} 10. d5 {[%emt 0:03:36]} exd5 {[%emt 0:00:44]} 11. exd5 {[%emt 0:01:02]} Nb8 {[%emt 0:01:13]} 12. b3 {[%emt 0:01:39]} Nbd7 {[%emt 0:03:10]} 13. Bb2 {[%emt 0:01:22]} a6 {[%emt 0:01:53]} 14. a4 {[%emt 0:00:40]} Re8 {[%emt 0:02:17]} 15. Qc2 {[%emt 0:02:59]} Ng4 {[%emt 0:11:19]} 16. Re2 {[%emt 0:05:38]} Bf6 {[%emt 0:06:42]} 17. Rae1 {[%emt 0:02:47]} Rxe2 {[%emt 0:00:23]} 18. Qxe2 {[%emt 0:01:05]} Qc7 {[%emt 0:01:46]} 19. Nd2 {[%emt 0:02:42]} Nge5 {[%emt 0:03:37]} 20. Nce4 {[%emt 0:06:36]} Be7 {[%emt 0:01:56]} 21. f4 {[%emt 0:02:55]} Ng6 {[%emt 0:00:32]} 22. h4 {[%emt 0:02:31]} h6 {[%emt 0:15:58]} 23. h5 {[%emt 0:01:25]} Ngf8 {[%emt 0:00:25]} 24. Qg4 {[%emt 0:02:37]} f6 {[%emt 0:01:23]} 25. Ng5 {[%emt 0:01:00]} hxg5 {[%emt 0:13:05]} 26. Rxe7 {[%emt 0:01:19]} Bc8 {[%emt 0:03:22]} 27. Qe2 {[%emt 0:02:53]} gxf4 {[%emt 0:02:13]} 28. gxf4 {[%emt 0:00:43]} Qd8 {[%emt 0:00:13]} 29. Re8 {[%emt 0:03:36]} Qc7 {[%emt 0:00:05]} 30. h6 {[%emt 0:00:56]} gxh6 {[%emt 0:03:25]} 31. Qe6+ {[%emt 0:00:58]} Kg7 {[%emt 0:01:11]} 32. Re7+ {[%emt 0:00:31]} Kh8 {[%emt 0:00:16]} 33. Bxf6+ {[%emt 0:00:19]} 1-0

[Event "95th Caplin Hastings Congress"]
[Site "Hastings"]
[Date "2019.12.28"]
[Round "1.43"]
[White "Zheng, Harry Z"]
[Black "Elwin, Adrian G"]
[Result "1/2-1/2"]
[ECO "B12"]
[WhiteElo "1705"]
[BlackElo "1986"]
[Annotator "NA"]
[PlyCount "81"]
[EventDate "2019.12.28"]
[EventType "swiss"]
[EventCountry "ENG"]
[SourceTitle "playchess.com"]
[Source "ChessBase"]
[SourceQuality "1"]
[TimeControl "40/6600+30:3000+30"]

1. e4 {[%emt 0:09:33]} c6 {[%emt 0:10:57]} 2. d4 {[%emt 0:00:11]} d5 {[%emt 0:00:10]} 3. e5 {[%emt 0:00:07]} Bf5 {[%emt 0:00:16]} 4. h4 {[%emt 0:00:13]} h5 {[%emt 0:01:46]} 5. Bd3 {[%emt 0:00:09]} Bxd3 {[%emt 0:02:38]} 6. Qxd3 {[%emt 0:00:10]} e6 {[%emt 0:00:36]} 7. Bg5 {[%emt 0:00:10]} Be7 {[%emt 0:01:42]} 8. Nf3 {[%emt 0:00:18]} Nd7 {[%emt 0:03:50]} 9. Nc3 {[%emt 0:10:36]} Nh6 {[%emt 0:11:03]} 10. Ne2 {[%emt 0:09:39]} Nf5 {[%emt 0:09:04]} 11. Ng3 {[%emt 0:06:43]} g6 {[%emt 0:00:37]} 12. Nxf5 {[%emt 0:06:50]} gxf5 {[%emt 0:00:48]} 13. Qe3 {[%emt 0:07:11]} Nf8 {[%emt 0:07:49]} 14. c3 {[%emt 0:07:15]} Ng6 {[%emt 0:06:08]} 15. Bxe7 {[%emt 0:03:07]} Qxe7 {[%emt 0:00:55]} 16. Qg5 {[%emt 0:06:01]} b6 {[%emt 0:14:27]} 17. Qxe7+ {[%emt 0:02:16]} Kxe7 {[%emt 0:00:04]} 18. g3 {[%emt 0:03:25]} f6 {[%emt 0:07:27]} 19. exf6+ {[%emt 0:06:40]} Kxf6 {[%emt 0:00:03]} 20. O-O {[%emt 0:00:37]} c5 {[%emt 0:08:57]} 21. Rfe1 {[%emt 0:04:01]} Rac8 {[%emt 0:09:18]} 22. Ng5 {[%emt 0:05:48]} Rhe8 {[%emt 0:02:37]} 23. Rad1 {[%emt 0:12:21]} Nf8 {[%emt 0:05:26]} 24. f4 {[%emt 0:03:23]} Re7 {[%emt 0:04:54]} 25. Re2 {[%emt 0:04:41]} cxd4 {[%emt 0:01:24]} 26. Rxd4 {[%emt 0:00:17]} Rc4 {[%emt 0:02:42]} 27. Rd1 {[%emt 0:03:56]} a5 {[%emt 0:03:36]} 28. Rd3 {[%emt 0:02:25]} Nd7 {[%emt 0:02:22]} 29. Rde3 {[%emt 0:00:26]} Rc6 {[%emt 0:00:12]} 30. Nf3 {[%emt 0:02:40]} Nc5 {[%emt 0:00:41]} 31. Nd4 {[%emt 0:00:21]} Rcc7 {[%emt 0:00:18]} 32. Nb5 {[%emt 0:00:34]} Rcd7 {[%emt 0:00:23]} 33. Nd4 {[%emt 0:00:13]} Ne4 {[%emt 0:00:21]} 34. Nc6 {[%emt 0:00:45]} Rg7 {[%emt 0:00:23]} 35. Kh2 {[%emt 0:00:11]} Rc7 {[%emt 0:00:58]} 36. Ne5 {[%emt 0:00:23]} Rc8 {[%emt 0:00:47]} 37. Rg2 {[%emt 0:01:00]} a4 {[%emt 0:00:57]} 38. a3 {[%emt 0:00:11]} Rgc7 {[%emt 0:01:10]} 39. Rd3 {[%emt 0:01:03]} b5 {[%emt 0:00:15]} 40. Re2 {[%emt 0:01:02]} Rg8 {[%emt 0:00:52]} 41. Rg2 {[%emt 0:50:23]} 1/2-1/2

[Event "95th Caplin Hastings Congress"]
[Site "Hastings"]
[Date "2019.12.28"]
[Round "1.44"]
[White "McNally, Richard J E"]
[Black "Butt, Laurence"]
[Result "1/2-1/2"]
[ECO "B06"]
[WhiteElo "1967"]
[BlackElo "1694"]
[Annotator "NA"]
[PlyCount "101"]
[EventDate "2019.12.28"]
[EventType "swiss"]
[EventCountry "ENG"]
[SourceTitle "playchess.com"]
[Source "ChessBase"]
[SourceQuality "1"]
[TimeControl "40/6600+30:3000+30"]

1. e4 {[%emt 0:09:55]} Nc6 {[%emt 0:09:19]} 2. Nc3 {[%emt 0:00:45]} g6 {[%emt 0:01:53]} 3. d4 {[%emt 0:00:39]} d6 {[%emt 0:00:24]} 4. Nge2 {[%emt 0:01:33]} Bg7 {[%emt 0:00:48]} 5. Be3 {[%emt 0:01:43]} e5 {[%emt 0:05:54]} 6. d5 {[%emt 0:03:12]} Nce7 {[%emt 0:00:35]} 7. g3 {[%emt 0:03:40]} Bg4 {[%emt 0:03:34]} 8. Bg2 {[%emt 0:00:26]} Qc8 {[%emt 0:00:14]} 9. h3 {[%emt 0:01:03]} Bd7 {[%emt 0:00:06]} 10. Qd2 {[%emt 0:01:22]} b5 {[%emt 0:01:06]} 11. a4 {[%emt 0:04:45]} bxa4 {[%emt 0:01:57]} 12. Nxa4 {[%emt 0:00:42]} f5 {[%emt 0:01:50]} 13. c4 {[%emt 0:05:57]} fxe4 {[%emt 0:00:37]} 14. c5 {[%emt 0:00:43]} Bb5 {[%emt 0:14:46]} 15. Bxe4 {[%emt 0:04:49]} Nf6 {[%emt 0:01:47]} 16. Bg2 {[%emt 0:01:38]} Bxe2 {[%emt 0:01:28]} 17. Qxe2 {[%emt 0:01:04]} O-O {[%emt 0:07:21]} 18. Nc3 {[%emt 0:01:19]} Nf5 {[%emt 0:00:22]} 19. O-O {[%emt 0:01:49]} Nxe3 {[%emt 0:11:06]} 20. Qxe3 {[%emt 0:00:39]} Rb8 {[%emt 0:00:40]} 21. Rfb1 {[%emt 0:01:51]} Rb3 {[%emt 0:01:13]} 22. c6 {[%emt 0:10:17]} Qf5 {[%emt 0:01:40]} 23. g4 {[%emt 0:04:45]} Qc8 {[%emt 0:05:24]} 24. Qxa7 {[%emt 0:01:36]} h5 {[%emt 0:00:34]} 25. Qa6 {[%emt 0:05:31]} Qb8 {[%emt 0:01:49]} 26. g5 {[%emt 0:02:20]} Ne8 {[%emt 0:01:43]} 27. Qd3 {[%emt 0:01:05]} Rf5 {[%emt 0:00:25]} 28. Qd2 {[%emt 0:07:35]} Rf4 {[%emt 0:02:59]} 29. Qc2 {[%emt 0:03:16]} Rf5 {[%emt 0:01:43]} 30. h4 {[%emt 0:01:09]} Rb4 {[%emt 0:02:54]} 31. Bh3 {[%emt 0:08:30]} Rbf4 {[%emt 0:04:33]} 32. Bxf5 {[%emt 0:00:00]} gxf5 {[%emt 0:00:02]} 33. Ra4 {[%emt 0:03:54]} e4 {[%emt 0:03:25]} 34. f3 {[%emt 0:05:49]} Rxf3 {[%emt 0:04:27]} 35. Nxe4 {[%emt 0:05:18]} fxe4 {[%emt 0:00:46]} 36. Qxe4 {[%emt 0:00:14]} Qb6+ {[%emt 0:01:43]} 37. Kh1 {[%emt 0:00:38]} Re3 {[%emt 0:02:00]} 38. Qf5 {[%emt 0:04:00]} Qb3 {[%emt 0:01:06]} 39. Ra3 {[%emt 0:01:44]} Qb6 {[%emt 0:01:30]} 40. Rxe3 {[%emt 0:02:33]} Qxe3 {[%emt 0:00:01]} 41. Qe6+ {[%emt 0:51:06]} Qxe6 {[%emt 0:50:10]} 42. dxe6 {[%emt 0:00:11]} Kf8 {[%emt 0:00:18]} 43. b4 {[%emt 0:01:24]} Ke7 {[%emt 0:00:10]} 44. b5 {[%emt 0:00:51]} Kxe6 {[%emt 0:00:22]} 45. Kg2 {[%emt 0:01:49]} d5 {[%emt 0:01:01]} 46. Re1+ {[%emt 0:03:00]} Be5 {[%emt 0:00:19]} 47. Kf3 {[%emt 0:00:31]} d4 {[%emt 0:06:07]} 48. Rb1 {[%emt 0:02:16]} Kf7 {[%emt 0:02:05]} 49. Ke4 {[%emt 0:01:26]} Ke6 {[%emt 0:00:23]} 50. Kf3 {[%emt 0:00:31]} Kf5 {[%emt 0:05:44]} 51. Rb3 {[%emt 0:01:13]} 1/2-1/2

[Event "95th Caplin Hastings Congress"]
[Site "Hastings"]
[Date "2019.12.28"]
[Round "1.45"]
[White "Verma, Shlok"]
[Black "Pavlov, Mikhail"]
[Result "0-1"]
[ECO "A59"]
[WhiteElo "1691"]
[BlackElo "1955"]
[Annotator "NA"]
[PlyCount "98"]
[EventDate "2019.12.28"]
[EventType "swiss"]
[EventCountry "ENG"]
[SourceTitle "playchess.com"]
[Source "ChessBase"]
[SourceQuality "1"]
[TimeControl "40/6600+30:3000+30"]

1. d4 {[%emt 0:09:34]} Nf6 {[%emt 0:09:36]} 2. c4 {[%emt 0:00:23]} c5 {[%emt 0:00:08]} 3. d5 {[%emt 0:00:46]} b5 {[%emt 0:00:12]} 4. cxb5 {[%emt 0:00:59]} a6 {[%emt 0:00:07]} 5. bxa6 {[%emt 0:00:31]} g6 {[%emt 0:00:10]} 6. Nc3 {[%emt 0:00:12]} Bxa6 {[%emt 0:00:09]} 7. e4 {[%emt 0:00:22]} Bxf1 {[%emt 0:00:06]} 8. Kxf1 {[%emt 0:00:26]} d6 {[%emt 0:00:05]} 9. Nf3 {[%emt 0:00:09]} Nbd7 {[%emt 0:00:08]} 10. g3 {[%emt 0:00:25]} Bg7 {[%emt 0:00:12]} 11. Kg2 {[%emt 0:00:07]} O-O {[%emt 0:00:05]} 12. a4 {[%emt 0:01:13]} Qb6 {[%emt 0:00:13]} 13. Qe2 {[%emt 0:01:19]} Rfb8 {[%emt 0:00:39]} 14. Nb5 {[%emt 0:01:24]} Ne8 {[%emt 0:00:23]} 15. Nd2 {[%emt 0:17:03]} Qa6 {[%emt 0:17:04]} 16. Ra3 {[%emt 0:12:26]} Nc7 {[%emt 0:05:10]} 17. Re1 {[%emt 0:03:14]} Nxb5 {[%emt 0:01:04]} 18. axb5 {[%emt 0:00:47]} Qb7 {[%emt 0:00:06]} 19. Rb3 {[%emt 0:03:20]} Ra5 {[%emt 0:02:34]} 20. Nb1 {[%emt 0:12:19]} Rxb5 {[%emt 0:07:00]} 21. Rxb5 {[%emt 0:00:57]} Qxb5 {[%emt 0:00:07]} 22. Qxb5 {[%emt 0:07:32]} Rxb5 {[%emt 0:00:06]} 23. Nc3 {[%emt 0:05:05]} Rb3 {[%emt 0:00:14]} 24. Re3 {[%emt 0:03:32]} Bd4 {[%emt 0:00:23]} 25. Re2 {[%emt 0:03:27]} Ne5 {[%emt 0:02:25]} 26. f4 {[%emt 0:10:44]} Nd3 {[%emt 0:01:27]} 27. Be3 {[%emt 0:03:58]} Nxb2 {[%emt 0:04:16]} 28. Bxd4 {[%emt 0:04:53]} cxd4 {[%emt 0:00:11]} 29. Nb1 {[%emt 0:00:59]} Nc4 {[%emt 0:00:51]} 30. Nd2 {[%emt 0:01:04]} Rb2 {[%emt 0:00:17]} 31. Nxc4 {[%emt 0:00:08]} Rxe2+ {[%emt 0:00:05]} 32. Kf3 {[%emt 0:00:25]} Rc2 {[%emt 0:00:20]} 33. Na5 {[%emt 0:00:21]} Rxh2 {[%emt 0:00:10]} 34. Nb3 {[%emt 0:00:46]} d3 {[%emt 0:00:18]} 35. Ke3 {[%emt 0:00:20]} Rg2 {[%emt 0:00:06]} 36. Kxd3 {[%emt 0:00:30]} Rxg3+ {[%emt 0:00:07]} 37. Kc4 {[%emt 0:00:26]} Rxb3 {[%emt 0:00:13]} 38. Kxb3 {[%emt 0:00:11]} h5 {[%emt 0:00:04]} 39. Kb4 {[%emt 0:00:13]} h4 {[%emt 0:00:07]} 40. Kb5 {[%emt 0:00:10]} h3 {[%emt 0:00:08]} 41. Kc6 {[%emt 0:50:07]} h2 {[%emt 0:50:07]} 42. Kd7 {[%emt 0:00:06]} Kf8 {[%emt 0:00:03]} 43. e5 {[%emt 0:00:04]} h1=Q {[%emt 0:00:18]} 44. exd6 {[%emt 0:00:08]} Qxd5 {[%emt 0:00:06]} 45. f5 {[%emt 0:00:13]} Qxd6+ {[%emt 0:00:09]} 46. Kc8 {[%emt 0:00:05]} gxf5 {[%emt 0:00:22]} 47. Kb7 {[%emt 0:00:10]} Qc5 {[%emt 0:00:06]} 48. Ka8 {[%emt 0:00:11]} Qb5 {[%emt 0:00:10]} 49. Ka7 {[%emt 0:00:09]} Ke8 {[%emt 0:00:12]} 0-1

[Event "95th Caplin Hastings Congress"]
[Site "Hastings"]
[Date "2019.12.28"]
[Round "1.46"]
[White "Burrows, Nick"]
[Black "Sandhu, Manvith"]
[Result "1-0"]
[ECO "D10"]
[WhiteElo "1952"]
[BlackElo "1673"]
[Annotator "NA"]
[PlyCount "101"]
[EventDate "2019.12.28"]
[EventType "swiss"]
[EventCountry "ENG"]
[SourceTitle "playchess.com"]
[Source "ChessBase"]
[SourceQuality "1"]
[TimeControl "40/6600+30:3000+30"]

1. d4 {[%emt 0:12:01]} d5 {[%emt 0:09:39]} 2. c4 {[%emt 0:00:11]} c6 {[%emt 0:00:05]} 3. cxd5 {[%emt 0:00:44]} cxd5 {[%emt 0:00:08]} 4. Bf4 {[%emt 0:00:29]} Nf6 {[%emt 0:00:34]} 5. e3 {[%emt 0:00:43]} Bf5 {[%emt 0:00:39]} 6. Nc3 {[%emt 0:02:41]} Nc6 {[%emt 0:06:17]} 7. Rc1 {[%emt 0:00:38]} e6 {[%emt 0:00:34]} 8. Qb3 {[%emt 0:00:53]} Bb4 {[%emt 0:03:03]} 9. Bb5 {[%emt 0:03:53]} Qa5 {[%emt 0:07:22]} 10. Bxc6+ {[%emt 0:03:54]} bxc6 {[%emt 0:01:24]} 11. Nge2 {[%emt 0:01:52]} Bd3 {[%emt 0:11:44]} 12. a3 {[%emt 0:10:55]} Bxc3+ {[%emt 0:04:42]} 13. Qxc3 {[%emt 0:00:21]} Qxc3+ {[%emt 0:03:07]} 14. Rxc3 {[%emt 0:00:06]} Bb5 {[%emt 0:00:18]} 15. f3 {[%emt 0:06:13]} a5 {[%emt 0:03:10]} 16. b3 {[%emt 0:10:17]} Kd7 {[%emt 0:03:09]} 17. Nc1 {[%emt 0:13:04]} h6 {[%emt 0:02:28]} 18. g4 {[%emt 0:03:07]} Ne8 {[%emt 0:02:31]} 19. h4 {[%emt 0:01:58]} f6 {[%emt 0:01:36]} 20. a4 {[%emt 0:05:45]} Ba6 {[%emt 0:00:39]} 21. Rc5 {[%emt 0:02:18]} Bb7 {[%emt 0:02:09]} 22. h5 {[%emt 0:01:50]} Nd6 {[%emt 0:01:49]} 23. Kd2 {[%emt 0:05:47]} Rhc8 {[%emt 0:02:28]} 24. Nd3 {[%emt 0:03:00]} Ba6 {[%emt 0:04:24]} 25. Rxa5 {[%emt 0:02:25]} Nb7 {[%emt 0:03:48]} 26. Nc5+ {[%emt 0:00:57]} Nxc5 {[%emt 0:00:20]} 27. Rxc5 {[%emt 0:01:23]} Bb7 {[%emt 0:01:16]} 28. Bg3 {[%emt 0:07:00]} Ra6 {[%emt 0:01:49]} 29. Kc3 {[%emt 0:03:05]} Rd8 {[%emt 0:01:10]} 30. Rg1 {[%emt 0:02:43]} Rc8 {[%emt 0:00:43]} 31. Bh2 {[%emt 0:01:06]} Rd8 {[%emt 0:01:41]} 32. Kb2 {[%emt 0:01:31]} Rc8 {[%emt 0:02:27]} 33. Rg2 {[%emt 0:05:04]} Rd8 {[%emt 0:00:32]} 34. Bg3 {[%emt 0:01:30]} Rc8 {[%emt 0:00:22]} 35. Bh2 {[%emt 0:01:12]} Rd8 {[%emt 0:00:10]} 36. Rc1 {[%emt 0:01:16]} Rc8 {[%emt 0:01:24]} 37. Re2 {[%emt 0:02:42]} Rd8 {[%emt 0:01:55]} 38. Rec2 {[%emt 0:00:41]} Rc8 {[%emt 0:00:51]} 39. Rg1 {[%emt 0:00:14]} Rd8 {[%emt 0:00:50]} 40. Ka3 {[%emt 0:00:44]} Rda8 {[%emt 0:00:36]} 41. Bg3 {[%emt 0:52:05]} R6a7 {[%emt 0:51:01]} 42. f4 Rh8 {[%emt 0:00:00]} 43. Be1 {[%emt 0:00:00]} Ra6 {[%emt 0:00:00]} 44. Rh2 {[%emt 0:00:00]} Ke7 {[%emt 0:00:00]} 45. g5 {[%emt 0:00:00]} hxg5 {[%emt 0:00:00]} 46. fxg5 {[%emt 0:00:00]} f5 {[%emt 0:00:00]} 47. Bg3 {[%emt 0:00:00]} Rh7 {[%emt 0:00:00]} 48. g6 {[%emt 0:00:00]} Rh8 {[%emt 0:00:00]} 49. Be5 {[%emt 0:00:00]} Rg8 {[%emt 0:04:25]} 50. Bxg7 {[%emt 0:00:00]} Rxg7 {[%emt 0:01:00]} 51. h6 {[%emt 0:00:00]} 1-0

[Event "95th Caplin Hastings Congress"]
[Site "Hastings"]
[Date "2019.12.28"]
[Round "1.47"]
[White "Brouwer, Willem"]
[Black "Spanton, Tim R"]
[Result "0-1"]
[ECO "A14"]
[WhiteElo "1662"]
[BlackElo "1951"]
[Annotator "NA"]
[PlyCount "72"]
[EventDate "2019.12.28"]
[EventType "swiss"]
[EventCountry "ENG"]
[SourceTitle "playchess.com"]
[Source "ChessBase"]
[SourceQuality "1"]
[TimeControl "40/6600+30:3000+30"]

1. Nf3 {[%emt 0:09:48]} d5 {[%emt 0:09:42]} 2. c4 {[%emt 0:00:14]} e6 {[%emt 0:00:23]} 3. g3 {[%emt 0:00:20]} Nf6 {[%emt 0:00:19]} 4. Bg2 {[%emt 0:00:24]} Be7 {[%emt 0:00:16]} 5. O-O {[%emt 0:01:10]} O-O {[%emt 0:00:05]} 6. b3 {[%emt 0:00:21]} c5 {[%emt 0:00:43]} 7. e3 {[%emt 0:01:10]} Nc6 {[%emt 0:03:22]} 8. d4 {[%emt 0:02:09]} b6 {[%emt 0:00:00]} 9. Bb2 {[%emt 0:00:25]} Bb7 {[%emt 0:00:05]} 10. Nbd2 {[%emt 0:00:37]} Rc8 {[%emt 0:02:34]} 11. a3 {[%emt 0:02:51]} Re8 {[%emt 0:01:16]} 12. Ne5 {[%emt 0:04:28]} cxd4 {[%emt 0:02:16]} 13. Nxc6 {[%emt 0:08:03]} Bxc6 {[%emt 0:00:15]} 14. Bxd4 {[%emt 0:01:21]} Bf8 {[%emt 0:05:12]} 15. f4 {[%emt 0:04:07]} dxc4 {[%emt 0:00:50]} 16. Bxc6 {[%emt 0:03:17]} Rxc6 {[%emt 0:00:11]} 17. Nxc4 {[%emt 0:02:42]} Bc5 {[%emt 0:03:49]} 18. Bxc5 {[%emt 0:14:08]} Rxc5 {[%emt 0:00:13]} 19. Qxd8 {[%emt 0:12:46]} Rxd8 {[%emt 0:00:04]} 20. Rad1 {[%emt 0:00:16]} Rcd5 {[%emt 0:00:18]} 21. Rxd5 {[%emt 0:01:48]} Rxd5 {[%emt 0:00:14]} 22. h3 {[%emt 0:04:55]} h5 {[%emt 0:00:57]} 23. a4 {[%emt 0:15:38]} Rd3 {[%emt 0:00:53]} 24. Rb1 {[%emt 0:02:03]} Ne4 {[%emt 0:00:57]} 25. g4 {[%emt 0:03:51]} hxg4 {[%emt 0:01:18]} 26. hxg4 {[%emt 0:00:11]} Nc5 {[%emt 0:00:13]} 27. a5 {[%emt 0:01:58]} b5 {[%emt 0:02:21]} 28. b4 {[%emt 0:01:51]} Ne4 {[%emt 0:00:42]} 29. Ne5 {[%emt 0:00:53]} Rxe3 {[%emt 0:05:25]} 30. Rb2 {[%emt 0:07:15]} Rc3 {[%emt 0:03:45]} 31. Kg2 {[%emt 0:05:26]} Nf6 {[%emt 0:01:43]} 32. f5 {[%emt 0:02:10]} Nd5 {[%emt 0:01:23]} 33. fxe6 {[%emt 0:00:39]} Nf4+ {[%emt 0:00:34]} 34. Kf2 {[%emt 0:01:33]} Nxe6 {[%emt 0:04:09]} 35. Ke2 {[%emt 0:00:33]} f6 {[%emt 0:00:40]} 36. Nf3 {[%emt 0:00:55]} Nf4+ {[%emt 0:00:41]} 0-1

[Event "95th Caplin Hastings Congress"]
[Site "Hastings"]
[Date "2019.12.28"]
[Round "1.48"]
[White "Ortiz Sanchez, Luis"]
[Black "Cresswell, Mike J"]
[Result "1-0"]
[ECO "B05"]
[WhiteElo "1947"]
[BlackElo "1662"]
[Annotator "NA"]
[PlyCount "63"]
[EventDate "2019.12.28"]
[EventType "swiss"]
[EventCountry "ENG"]
[SourceTitle "playchess.com"]
[Source "ChessBase"]
[SourceQuality "1"]
[TimeControl "40/6600+30:3000+30"]

1. e4 {[%emt 0:10:10]} Nf6 {[%emt 0:09:38]} 2. e5 {[%emt 0:00:26]} Nd5 {[%emt 0:00:08]} 3. d4 {[%emt 0:00:33]} d6 {[%emt 0:00:09]} 4. Nf3 {[%emt 0:00:23]} Bg4 {[%emt 0:01:44]} 5. Be2 {[%emt 0:01:06]} e6 {[%emt 0:01:55]} 6. h3 {[%emt 0:01:09]} Bh5 {[%emt 0:01:12]} 7. O-O {[%emt 0:00:48]} Be7 {[%emt 0:01:03]} 8. exd6 {[%emt 0:02:16]} cxd6 {[%emt 0:01:18]} 9. c4 {[%emt 0:01:03]} Nf6 {[%emt 0:01:07]} 10. Nc3 {[%emt 0:02:01]} O-O {[%emt 0:02:34]} 11. d5 {[%emt 0:05:13]} e5 {[%emt 0:04:22]} 12. Be3 {[%emt 0:03:24]} Nbd7 {[%emt 0:05:18]} 13. Rc1 {[%emt 0:06:08]} a6 {[%emt 0:08:27]} 14. Nd2 {[%emt 0:01:40]} Bxe2 {[%emt 0:02:28]} 15. Qxe2 {[%emt 0:01:03]} Rc8 {[%emt 0:02:46]} 16. f4 {[%emt 0:01:25]} Re8 {[%emt 0:04:10]} 17. Qf2 {[%emt 0:04:06]} Nh5 {[%emt 0:04:33]} 18. Ne2 {[%emt 0:04:03]} Nxf4 {[%emt 0:07:34]} 19. Nxf4 {[%emt 0:02:50]} exf4 {[%emt 0:00:09]} 20. Bxf4 {[%emt 0:01:44]} Nf6 {[%emt 0:03:14]} 21. Kh1 {[%emt 0:08:31]} Qd7 {[%emt 0:03:37]} 22. b3 {[%emt 0:10:34]} Bf8 {[%emt 0:02:46]} 23. Qf3 {[%emt 0:03:28]} h6 {[%emt 0:03:37]} 24. Bxh6 {[%emt 0:08:10]} gxh6 {[%emt 0:00:24]} 25. Qxf6 {[%emt 0:00:04]} Re2 {[%emt 0:00:57]} 26. Rf2 {[%emt 0:03:21]} Rce8 {[%emt 0:02:11]} 27. Qf3 {[%emt 0:02:54]} Rxf2 {[%emt 0:01:41]} 28. Qxf2 {[%emt 0:00:07]} Re5 {[%emt 0:01:16]} 29. Nf3 {[%emt 0:01:33]} Re4 {[%emt 0:01:56]} 30. Rf1 {[%emt 0:03:10]} Qe7 {[%emt 0:03:53]} 31. Nd4 {[%emt 0:01:07]} Qe5 {[%emt 0:01:11]} 32. Qxf7+ {[%emt 0:02:22]} 1-0

[Event "95th Caplin Hastings Congress"]
[Site "Hastings"]
[Date "2019.12.28"]
[Round "1.49"]
[White "Kearsley, Raymond J"]
[Black "Barton, R Alan"]
[Result "0-1"]
[ECO "B00"]
[WhiteElo "1624"]
[BlackElo "1945"]
[Annotator "NA"]
[PlyCount "42"]
[EventDate "2019.12.28"]
[EventType "swiss"]
[EventCountry "ENG"]
[SourceTitle "playchess.com"]
[Source "ChessBase"]
[SourceQuality "1"]
[TimeControl "40/6600+30:3000+30"]

1. e4 {[%emt 0:10:50]} b6 {[%emt 0:10:07]} 2. d4 {[%emt 0:00:11]} Bb7 {[%emt 0:00:08]} 3. Nc3 {[%emt 0:00:15]} e6 {[%emt 0:00:25]} 4. Nf3 {[%emt 0:00:28]} Bb4 {[%emt 0:00:10]} 5. Bd3 {[%emt 0:00:07]} Nf6 {[%emt 0:01:29]} 6. Qe2 {[%emt 0:00:11]} d5 {[%emt 0:03:17]} 7. exd5 {[%emt 0:00:18]} Nxd5 {[%emt 0:01:31]} 8. Bd2 {[%emt 0:02:26]} Nxc3 {[%emt 0:03:58]} 9. bxc3 {[%emt 0:00:42]} Be7 {[%emt 0:00:05]} 10. O-O {[%emt 0:00:22]} Nd7 {[%emt 0:02:10]} 11. Rad1 {[%emt 0:01:05]} Bf6 {[%emt 0:05:30]} 12. Bf4 {[%emt 0:01:06]} O-O {[%emt 0:04:18]} 13. Ne5 {[%emt 0:06:46]} g6 {[%emt 0:06:04]} 14. Bb5 {[%emt 0:06:16]} Nb8 {[%emt 0:07:07]} 15. Rfe1 {[%emt 0:03:51]} Bg7 {[%emt 0:03:42]} 16. Qe3 {[%emt 0:05:05]} Qd5 {[%emt 0:09:10]} 17. Bf1 {[%emt 0:00:32]} Nc6 {[%emt 0:04:58]} 18. Bc4 {[%emt 0:05:07]} Qd8 {[%emt 0:05:01]} 19. Bh6 {[%emt 0:15:11]} Nxe5 {[%emt 0:03:22]} 20. dxe5 {[%emt 0:00:39]} Qh4 {[%emt 0:06:33]} 21. Bg5 {[%emt 0:03:35]} Qxc4 {[%emt 0:00:06]} 0-1